bitfinex/quotes_ETHUSD_20250905
["timestamp","ask_amount","ask_price","bid_price","bid_amount"]
[1757033845769,0.001,4310.0,4309.9,4.45143944]
[1757033845969,0.001,4310.0,4309.9,9.59749858]
[1757033846174,0.001,4310.0,4309.9,10.02909619]
[1757033847087,0.001,4310.0,4309.9,13.91408862]
[1757033849781,0.001,4310.0,4309.9,9.55328862]
[1757033849990,0.001,4310.0,4309.9,12.96408862]
[1757033851282,0.001,4310.0,4309.9,13.91308862]
[1757033851884,0.001,4310.0,4309.9,8.26708862]
[1757033852090,0.001,4310.0,4309.9,12.17208862]
[1757033852290,0.001,4310.0,4309.9,13.00508862]
[1757033852583,0.001,4310.0,4309.9,13.12108862]
[1757033853961,0.001,4310.0,4309.9,13.91308862]
[1757033855473,0.001,4310.0,4309.9,13.91408862]
[1757033855889,0.001,4310.0,4309.9,10.00808862]
[1757033856094,0.001,4310.0,4309.9,13.91408862]
[1757033856694,0.001,4310.0,4309.9,9.55328862]
[1757033856876,0.3001,4310.0,4309.9,11.86788862]
[1757033858597,0.001,4310.0,4309.9,11.86788862]
[1757033858766,0.001,4310.0,4309.9,12.17208862]
[1757033859168,0.001,4310.0,4309.9,12.62978862]
[1757033859367,0.001,4310.0,4309.9,13.08718862]
[1757033859580,0.001,4310.0,4309.9,11.86788862]
[1757033859782,0.2899,4310.0,4309.9,11.86788862]
[1757033860592,0.001,4310.0,4309.9,11.86788862]
[1757033860901,0.001,4310.0,4309.9,12.17778862]
[1757033863179,0.001,4310.0,4309.9,13.09288862]
[1757033863600,0.001,4310.0,4309.9,11.86788862]
[1757033863903,0.001,4310.0,4309.9,12.17778862]
[1757033864977,0.2899,4310.0,4309.9,11.86788862]
[1757033865878,0.001,4310.0,4309.9,8.27278862]
[1757033866074,0.001,4310.0,4309.9,12.17278862]
[1757033866278,0.001,4310.0,4309.9,13.08788862]
[1757033866486,0.001,4310.0,4309.9,13.87988862]
[1757033866810,0.001,4310.0,4309.9,13.78689619]
[1757033868197,0.001,4310.0,4309.9,16.12689619]
[1757033870104,0.001,4310.0,4309.9,21.46989619]
[1757033870818,0.001,4310.0,4309.9,14.77249619]
[1757033871109,0.001,4310.0,4309.9,17.30579619]
[1757033872009,0.001,4310.0,4309.9,17.76349619]
[1757033872183,0.001,4310.0,4309.9,17.30579619]
[1757033875101,0.001,4310.0,4309.9,16.99589619]
[1757033875102,0.2899,4310.0,4309.9,16.99589619]
[1757033875506,0.2899,4310.0,4309.9,13.09689619]
[1757033875904,0.2899,4310.0,4309.9,16.99389619]
[1757033876081,0.2899,4310.0,4309.9,19.33389619]
[1757033877231,0.001,4310.0,4309.9,19.64379619]
[1757033878409,0.2899,4310.0,4309.9,19.33389619]
[1757033878988,0.2899,4310.0,4309.9,19.33289619]
[1757033879497,0.001,4310.0,4309.9,19.33289619]
[1757033879693,0.001,4310.0,4309.9,19.64279619]
[1757033879903,0.001,4310.0,4309.9,20.55789619]
[1757033880896,0.001,4310.0,4309.9,20.67389619]
[1757033881395,0.001,4310.4,4310.3,5.32002412]
[1757033881598,0.001,4310.4,4310.3,11.66902412]
[1757033881816,0.2899,4310.4,4310.3,11.66902412]
[1757033881984,0.7635,4310.4,4310.3,11.66902412]
[1757033882536,0.2899,4310.4,4310.3,11.66902412]
[1757033883417,0.7635,4310.4,4310.3,11.66902412]
[1757033883616,1.2219,4310.4,4310.3,11.66902412]
[1757033884117,1.2219,4310.4,4310.3,0.116]
[1757033884292,1.2219,4310.4,4310.3,4.01]
[1757033884293,5.70595445,4310.4,4310.3,4.01]
[1757033884823,5.70595445,4310.4,4310.3,4.012]
[1757033885226,5.70595445,4310.4,4309.9,1.711]
[1757033885520,0.932,4310.3,4310.0,4.013]
[1757033885723,4.77395445,4310.4,4310.0,0.116]
[1757033885724,0.2889,4310.1,4310.0,0.116]
[1757033886026,0.2889,4310.1,4310.0,4.013]
[1757033886223,1.2209,4310.1,4310.0,4.013]
[1757033887000,1.2209,4310.1,4310.0,0.116]
[1757033887199,1.2209,4310.1,4310.0,4.012]
[1757033887802,1.2209,4310.1,4310.0,0.116]
[1757033888096,1.2209,4310.1,4310.0,4.012]
[1757033889114,1.2219,4310.1,4310.0,4.012]
[1757033889514,0.2899,4310.1,4310.0,6.33218561]
[1757033890498,0.001,4310.1,4310.0,6.33218561]
[1757033891338,0.3092,4310.1,4310.0,6.33218561]
[1757033892543,1.2384,4310.1,4310.0,4.011]
[1757033892704,1.2384,4310.1,4310.0,0.116]
[1757033892904,1.2384,4310.1,4309.9,3.895]
[1757033893133,0.9292,4310.0,4309.9,3.895]
[1757033893308,1.2374,4310.0,4309.9,3.895]
[1757033893914,1.2374,4310.0,4309.7,0.116]
[1757033894115,0.9292,4309.9,4309.8,3.895]
[1757033894462,1.2374,4309.9,4309.8,3.895]
[1757033894934,0.3082,4309.9,4309.8,6.21529328]
[1757033895115,0.001,4310.1,4309.8,6.21529328]
[1757033895116,0.001,4310.1,4310.0,2.32018561]
[1757033895312,0.001,4310.1,4310.0,8.8220735]
[1757033895616,0.001,4310.1,4310.0,10.1725735]
[1757033899516,0.3092,4310.1,4310.0,8.9380735]
[1757033899810,0.3092,4310.1,4310.0,5.0420735]
[1757033900011,0.7412,4310.1,4310.0,5.721]
[1757033900221,1.2384,4310.1,4310.0,1.826]
[1757033900424,1.2384,4310.1,4309.9,3.897]
[1757033900624,0.9292,4310.0,4309.9,3.897]
[1757033900921,1.2374,4310.0,4309.9,3.897]
[1757033902649,0.7402,4310.0,4309.9,3.897]
[1757033902943,0.3082,4310.0,4309.9,3.897]
[1757033903147,0.001,4310.1,4309.9,6.21723944]
[1757033903450,0.001,4310.1,4309.9,6.33323944]
[1757033903953,0.001,4310.1,4310.0,2.62758561]
[1757033904120,0.001,4310.1,4310.0,3.55468561]
[1757033904652,0.001,4310.1,4310.0,3.08178561]
[1757033904960,0.001,4310.1,4310.0,2.62758561]
[1757033905750,0.3092,4310.1,4310.0,2.32018561]
[1757033906155,0.3092,4310.1,4310.0,4.03018561]
[1757033906341,0.3092,4310.1,4310.0,8.36537553]
[1757033907053,0.3092,4310.1,4310.0,8.36937553]
[1757033907846,0.3092,4310.1,4310.0,8.36837553]
[1757033908052,0.3092,4310.1,4310.0,7.93118561]
[1757033910348,0.001,4310.1,4310.0,8.23858561]
[1757033910914,0.001,4310.1,4310.0,10.57758561]
[1757033911119,0.001,4310.1,4310.0,10.27018561]
[1757033917357,0.3092,4310.1,4310.0,10.26818561]
[1757033919257,0.001,4310.1,4310.0,10.26818561]
[1757033919435,0.001,4310.1,4310.0,12.82132188]
[1757033919632,0.2899,4310.1,4310.0,11.58592188]
[1757033920855,0.001,4310.1,4310.0,11.58592188]
[1757033921255,0.001,4310.1,4310.0,11.89162188]
[1757033924837,0.001,4310.1,4310.0,12.82132188]
[1757033926959,0.001,4310.1,4310.0,9.01931323]
[1757033927161,0.001,4310.1,4310.0,12.91431323]
[1757033933269,0.001,4310.1,4310.0,15.91431323]
[1757033934072,0.001,4310.1,4310.0,21.19303479]
[1757033934366,0.001,4310.1,4310.0,16.03031323]
[1757033935073,0.001,4310.1,4310.0,11.20561323]
[1757033935278,0.2899,4310.1,4310.0,14.79491323]
[1757033935464,0.001,4310.1,4310.0,15.10061323]
[1757033936875,0.001,4310.1,4310.0,10.89991323]
[1757033937076,0.001,4310.1,4310.0,14.79491323]
[1757033937442,0.001,4310.1,4310.0,15.10061323]
[1757033938690,0.001,4310.1,4310.0,11.20561323]
[1757033938848,0.001,4310.1,4310.0,15.10061323]
[1757033940081,0.2899,4310.1,4310.0,11.79491323]
[1757033940278,0.2899,4310.1,4310.0,11.70192188]
[1757033940580,0.7558,4310.1,4310.0,10.38418561]
[1757033940782,1.2309,4310.1,4310.0,10.38418561]
[1757033940988,1.2309,4310.1,4310.0,6.48918561]
[1757033941164,1.2309,4310.1,4310.0,10.38418561]
[1757033941546,0.7558,4310.1,4310.0,10.38418561]
[1757033942351,1.2309,4310.1,4310.0,0.004]
[1757033942545,1.2309,4310.1,4310.0,3.899]
[1757033942860,1.2309,4310.1,4310.0,0.004]
[1757033953967,0.7558,4310.1,4310.0,0.004]
[1757033955496,3.07593178,4310.1,4310.0,0.004]
[1757033955865,3.56633178,4310.1,4310.0,0.004]
[1757033956570,0.001,4310.1,4310.0,0.004]
[1757033956869,0.3123,4310.1,4310.0,0.004]
[1757033957268,2.63243178,4310.1,4310.0,0.004]
[1757033957663,3.09093178,4310.1,4310.0,0.004]
[1757033958473,3.58133178,4310.1,4310.0,0.004]
[1757033958803,7.39645866,4310.1,4310.0,0.004]
[1757033958962,2.32040096,4309.6,4309.5,0.004]
[1757033959163,14.61012252,4309.6,4309.5,0.004]
[1757033959386,15.87032252,4309.6,4309.5,0.004]
[1757033959591,15.96336558,4309.6,4309.5,0.004]
[1757033960285,7.41534306,4309.6,4309.5,0.004]
[1757033960486,7.3223,4309.6,4309.5,0.004]
[1757033960696,9.64270096,4309.6,4309.5,0.004]
[1757033960996,7.3223,4309.6,4309.5,0.004]
[1757033961693,3.4273,4309.6,4309.5,0.004]
[1757033961903,4.011,4309.7,4309.5,0.304]
[1757033962104,4.011,4309.7,4309.5,0.004]
[1757033963182,0.116,4309.7,4309.5,0.004]
[1757033963387,3.895,4309.8,4309.6,0.3]
[1757033964071,3.895,4309.8,4309.5,0.004]
[1757033964571,9.17372156,4309.8,4309.5,0.004]
[1757033964975,5.27872156,4309.8,4309.5,0.004]
[1757033967671,9.28972156,4309.9,4309.5,0.004]
[1757033967872,0.3113,4309.6,4309.5,0.004]
[1757033970707,9.28972156,4309.9,4309.5,0.004]
[1757033971309,0.3113,4309.6,4309.5,0.004]
[1757033971620,9.74822156,4309.9,4309.5,0.004]
[1757033971988,9.28972156,4309.9,4309.5,1.2051]
[1757033972196,4.011,4309.9,4309.5,1.2051]
[1757033972713,4.011,4309.9,4309.5,0.304]
[1757033973401,4.011,4309.9,4309.6,0.4653]
[1757033973573,4.011,4309.9,4309.5,0.4398]
[1757033973779,4.011,4309.9,4309.5,0.004]
[1757033974183,4.011,4309.9,4309.8,0.3]
[1757033974579,4.3223,4309.9,4309.5,0.004]
[1757033975403,4.011,4309.9,4309.6,0.4653]
[1757033976182,4.011,4309.9,4309.6,0.9011]
[1757033976389,0.116,4309.9,4309.6,0.9011]
[1757033977205,0.116,4309.9,4309.6,0.4653]
[1757033978817,0.116,4309.9,4309.8,0.3]
[1757033979016,0.116,4309.9,4309.8,0.7677]
[1757033979316,0.116,4309.9,4309.8,1.2119]
[1757033979617,4.60319091,4309.9,4309.8,1.2119]
[1757033980115,4.60319091,4309.9,4309.8,0.7677]
[1757033981798,4.60319091,4309.9,4309.8,1.2119]
[1757033982003,0.116,4309.9,4309.8,1.2119]
[1757033982190,0.117,4310.1,4309.8,1.2119]
[1757033982391,0.117,4310.1,4309.9,0.9119]
[1757033982812,0.117,4310.1,4310.0,0.2995]
[1757033984134,0.4327,4310.1,4309.5,3.899]
[1757033984296,4.48719091,4309.8,4309.5,3.899]
[1757033984496,4.48719091,4309.8,4309.7,0.2995]
[1757033986824,0.117,4310.1,4309.7,3.08754523]
[1757033987124,4.60419091,4310.1,4309.7,3.53174523]
[1757033988030,4.60419091,4310.1,4309.7,1.2114]
[1757033988234,4.60419091,4310.1,4309.7,3.53174476]
[1757033989938,4.60419091,4310.1,4309.7,1.2114]
[1757033990711,4.60419091,4310.1,4309.7,0.7672]
[1757033991413,4.60419091,4310.1,4309.7,3.08754363]
[1757033991618,4.60419091,4310.1,4309.7,3.53174363]
[1757033992437,4.60419091,4310.1,4309.7,1.2114]
[1757033994526,4.60419091,4310.1,4309.7,3.53173036]
[1757033995514,4.60419091,4310.1,4309.7,1.2114]
[1757033995714,7.12323767,4309.8,4309.6,0.004]
[1757033995942,6.237474,4309.7,4309.6,0.004]
[1757033996170,6.21434712,4309.7,4309.6,0.004]
[1757033996459,7.42414712,4309.7,4309.6,0.004]
[1757033997049,6.97124712,4309.7,4309.6,0.004]
[1757033998130,4.6509,4309.7,4309.6,0.004]
[1757033998743,6.97124712,4309.7,4309.6,0.004]
[1757033999048,4.6509,4309.7,4309.6,0.004]
[1757033999557,6.97124712,4309.7,4309.6,0.004]
[1757033999757,6.80775341,4309.3,4309.2,0.004]
[1757034000066,13.70175341,4309.3,4309.2,0.004]
[1757034000227,3.0,4309.3,4309.2,0.004]
[1757034000433,1.71,4309.7,4309.2,0.7477]
[1757034000652,8.38119091,4309.6,4309.2,1.2154]
[1757034001036,8.38119091,4309.6,4309.2,0.7712]
[1757034001540,4.48719091,4309.3,4309.2,0.7712]
[1757034001924,3.894,4309.6,4309.3,2.32056126]
[1757034002125,3.894,4309.6,4309.5,0.2995]
[1757034002319,2.3204548,4309.5,4309.2,0.004]
[1757034002525,4.48719091,4309.3,4309.2,0.004]
[1757034002750,4.80289091,4309.3,4309.2,0.004]
[1757034002950,8.38119091,4309.4,4309.2,0.3035]
[1757034003140,2.3202577,4309.9,4309.2,1.2154]
[1757034003141,3.894,4309.6,4309.2,1.2154]
[1757034003341,3.894,4309.8,4309.3,0.9119]
[1757034003775,3.894,4309.8,4309.4,0.9119]
[1757034004374,0.3157,4309.5,4309.2,0.004]
[1757034005248,4.48719091,4309.3,4309.2,0.004]
[1757034005788,4.80289091,4309.3,4309.2,0.004]
[1757034005987,0.116,4309.6,4309.2,0.004]
[1757034005988,4.60319091,4309.6,4309.2,0.004]
[1757034006512,4.60319091,4309.6,4309.2,0.4482]
[1757034006641,4.48719091,4309.6,4309.3,0.4677]
[1757034007081,3.894,4309.7,4309.5,0.2995]
[1757034009571,3.116,4309.8,4309.5,0.2995]
[1757034009880,7.1214976,4309.6,4309.2,0.004]
[1757034010076,4.48719091,4309.3,4309.2,0.004]
[1757034010380,0.4383,4309.5,4309.2,0.004]
[1757034010559,0.3139,4309.3,4309.2,0.004]
[1757034010949,4.48719091,4309.4,4309.2,0.004]
[1757034012472,3.0727625,4309.3,4309.2,0.004]
[1757034012782,7.5412625,4309.3,4309.2,0.004]
[1757034013080,7.5412625,4309.3,4309.2,0.2993]
[1757034013081,3.894,4309.3,4309.2,0.2993]
[1757034013278,8.49719091,4309.5,4309.2,0.7577]
[1757034013446,8.49719091,4309.5,4309.2,0.2993]
[1757034013853,8.49719091,4309.5,4309.2,0.004]
[1757034014758,0.3139,4309.3,4309.2,0.004]
[1757034015573,8.49619091,4309.5,4309.2,0.2993]
[1757034015879,4.60319091,4309.5,4309.2,1.2051]
[1757034016264,4.48719091,4309.5,4309.3,0.9058]
[1757034016460,4.48719091,4309.5,4309.2,0.004]
[1757034018876,0.3139,4309.3,4309.2,0.004]
[1757034020179,2.7504625,4309.3,4309.2,0.004]
[1757034020380,3.6472625,4309.3,4309.2,0.004]
[1757034020587,0.3139,4309.3,4309.2,0.004]
[1757034020881,4.009,4309.4,4309.2,0.2993]
[1757034021383,0.3139,4309.3,4309.2,0.004]
[1757034021588,0.7522,4309.3,4309.2,0.004]
[1757034021806,3.0727625,4309.3,4309.2,0.004]
[1757034021963,3.5312625,4309.3,4309.2,0.004]
[1757034022163,6.5312625,4309.3,4309.2,0.004]
[1757034023164,4.2107,4309.3,4309.2,0.004]
[1757034023390,6.0727625,4309.3,4309.2,0.004]
[1757034023591,6.5312625,4309.3,4309.2,0.004]
[1757034026199,10.55995341,4309.3,4309.2,0.004]
[1757034026492,10.12165341,4309.3,4309.2,0.004]
[1757034026699,0.001,4309.5,4309.2,0.7577]
[1757034026861,0.001,4309.5,4309.4,2.43650865]
[1757034027066,0.001,4309.5,4309.4,0.71261998]
[1757034027261,0.001,4309.5,4309.4,2.73180865]
[1757034027502,0.001,4309.5,4309.4,3.63760865]
[1757034027870,0.001,4309.5,4309.4,3.66081373]
[1757034028896,0.001,4309.5,4309.4,3.63760865]
[1757034029096,0.0005192,4310.4,4309.9,2.32020347]
[1757034029284,0.0005192,4310.4,4309.5,1.21462004]
[1757034029490,0.0005192,4310.4,4310.3,0.2953]
[1757034030701,0.0005192,4310.4,4310.3,0.7537]
[1757034031272,0.0005192,4310.4,4310.3,1.2011]
[1757034033615,0.0005192,4310.4,4310.3,0.2953]
[1757034034110,0.0005192,4310.4,4308.8,4.51619091]
[1757034034111,5.1042192,4310.4,4309.2,0.004]
[1757034034269,5.1042192,4310.4,4309.5,0.116]
[1757034034270,4.48719091,4309.6,4309.5,0.116]
[1757034035575,4.48719091,4309.6,4309.5,0.4113]
[1757034037683,4.80109091,4309.6,4309.5,0.116]
[1757034038390,0.3139,4309.6,4309.5,0.116]
[1757034038592,2.32046415,4309.5,4309.2,0.004]
[1757034038923,4.48719091,4309.3,4309.2,0.004]
[1757034039081,10.23615341,4309.3,4309.2,0.004]
[1757034039280,11.13515341,4309.3,4309.2,0.004]
[1757034039481,11.9315683,4309.3,4309.2,0.004]
[1757034039711,9.1592058,4309.3,4309.2,0.004]
[1757034039892,3.4284,4309.3,4309.2,0.004]
[1757034040093,7.2044,4309.3,4309.2,0.004]
[1757034040417,7.3204,4309.3,4309.2,0.004]
[1757034041403,7.008,4309.3,4309.2,0.004]
[1757034041602,3.892,4309.4,4309.2,1.2435]
[1757034041805,5.32023982,4309.9,4309.2,1.2435]
[1757034041806,3.116,4309.6,4309.3,0.4842]
[1757034042501,3.116,4309.6,4309.2,0.4453]
[1757034042813,0.116,4309.6,4309.2,0.4453]
[1757034045799,0.116,4309.6,4309.2,0.004]
[1757034046005,0.3124,4309.3,4309.2,0.004]
[1757034046717,16.52269518,4309.3,4309.2,0.004]
[1757034046935,16.6155683,4309.3,4309.2,0.004]
[1757034049898,16.1637683,4309.3,4309.2,0.004]
[1757034050715,8.7120058,4309.3,4309.2,0.004]
[1757034050918,0.116,4309.4,4309.2,1.2435]
[1757034051216,0.116,4309.6,4309.3,0.9255]
[1757034051423,0.116,4309.6,4309.5,0.314]
[1757034052131,0.4284,4309.6,4309.2,0.004]
[1757034052336,0.45152688,4309.6,4309.2,0.004]
[1757034053437,5.2836058,4309.3,4309.2,0.004]
[1757034053597,8.3996058,4309.3,4309.2,0.004]
[1757034053799,15.3727683,4309.3,4309.2,0.004]
[1757034053994,10.0891625,4309.3,4309.2,0.004]
[1757034054335,9.6419625,4309.3,4309.2,0.004]
[1757034055104,10.0891625,4309.3,4309.2,0.004]
[1757034055805,10.0891625,4309.3,4309.2,0.318]
[1757034055806,7.009,4309.3,4309.2,0.318]
[1757034056127,7.009,4309.3,4309.2,0.004]
[1757034056424,9.6419625,4309.3,4309.2,0.004]
[1757034057298,10.0891625,4309.3,4309.2,0.004]
[1757034057499,10.5409625,4309.3,4309.2,0.004]
[1757034058127,9.6419625,4309.3,4309.2,0.004]
[1757034058319,9.3295625,4309.3,4309.2,0.318]
[1757034058824,9.6419625,4309.3,4309.2,0.004]
[1757034059441,7.3214,4309.3,4309.2,0.004]
[1757034059606,7.009,4309.3,4309.2,0.004]
[1757034059809,1.71,4310.2,4309.2,1.2435]
[1757034060155,1.71,4310.2,4309.3,0.9255]
[1757034060156,0.116,4309.7,4309.3,0.9255]
[1757034060306,0.116,4309.7,4309.4,2.32049887]
[1757034060512,0.116,4309.7,4309.6,0.314]
[1757034060920,0.116,4309.7,4309.6,1.2395]
[1757034062451,3.893,4310.1,4309.6,1.59549996]
[1757034062670,0.0005192,4310.4,4309.7,0.9255]
[1757034062671,0.1165192,4310.4,4309.7,0.9255]
[1757034062942,0.0005192,4310.4,4310.3,2.63402412]
[1757034063153,0.0005192,4310.4,4310.3,3.55952412]
[1757034063644,0.0005192,4310.4,4310.3,3.67552412]
[1757034063845,0.0005192,4310.4,4310.3,4.44840745]
[1757034065536,0.0005192,4310.4,4310.3,8.34040745]
[1757034066033,0.0005192,4310.4,4310.3,11.34040745]
[1757034067739,0.0005192,4310.4,4310.3,12.13240745]
[1757034071155,0.0005192,4310.4,4310.3,8.24040745]
[1757034071452,0.0005192,4310.4,4310.3,12.13140745]
[1757034072020,0.0005192,4310.4,4310.3,7.44840745]
[1757034072422,0.0005192,4310.4,4310.3,11.33940745]
[1757034073058,0.0005192,4310.4,4310.3,7.44840745]
[1757034073363,0.2858192,4310.4,4310.3,7.09990745]
[1757034073650,0.0005192,4310.4,4310.3,7.09990745]
[1757034074347,0.0005192,4310.4,4310.3,3.20890745]
[1757034074648,0.0005192,4310.4,4310.3,7.38520745]
[1757034074848,0.0005192,4310.4,4310.3,3.20890745]
[1757034075058,0.2858192,4310.4,4310.3,0.116]
[1757034075240,0.7598192,4310.4,4310.3,4.007]
[1757034075572,1.2449192,4310.4,4310.3,0.116]
[1757034075746,1.2449192,4310.4,4309.2,0.59155]
[1757034075747,1.2449192,4310.4,4310.2,2.481]
[1757034076059,0.9591,4310.3,4309.7,0.116]
[1757034076223,0.9591,4310.3,4309.8,3.891]
[1757034076224,2.32014301,4310.1,4309.8,3.891]
[1757034076422,0.2853,4309.9,4309.8,3.891]
[1757034076725,0.2853,4309.9,4309.6,1.71]
[1757034076726,1.2444,4309.9,4309.6,1.71]
[1757034076947,2.43634712,4309.7,4309.2,0.004]
[1757034077257,0.116,4309.3,4309.2,0.004]
[1757034077457,2.7218625,4309.3,4309.2,0.004]
[1757034077642,0.8864,4309.3,4309.2,0.004]
[1757034077957,0.2853,4309.3,4309.2,0.004]
[1757034081858,0.116,4310.0,4309.5,2.32043411]
[1757034082052,0.116,4310.0,4309.5,6.21643411]
[1757034082245,0.116,4310.0,4309.5,3.896]
[1757034082644,0.116,4310.0,4309.5,6.21644499]
[1757034082832,5.79450536,4310.4,4309.7,0.116]
[1757034083038,0.2853,4309.8,4309.7,0.116]
[1757034083438,0.7593,4309.8,4309.7,0.116]
[1757034083650,1.2444,4309.8,4309.6,2.339]
[1757034083850,0.7704,4309.8,4309.6,2.339]
[1757034084054,0.474,4309.7,4309.6,2.339]
[1757034084364,1.3604,4309.7,4309.6,2.339]
[1757034084927,0.8753,4309.7,4309.6,2.339]
[1757034085573,0.4013,4309.7,4309.6,2.339]
[1757034085883,0.8753,4309.7,4309.6,2.339]
[1757034087044,0.116,4309.7,4309.6,2.339]
[1757034087941,0.116,4309.7,4309.3,6.21755939]
[1757034088259,0.116,4309.7,4309.3,4.8107]
[1757034088638,0.116,4309.7,4309.3,3.897]
[1757034088847,0.2853,4309.4,4309.3,3.897]
[1757034089662,0.2853,4309.4,4309.2,3.9]
[1757034090669,0.7593,4309.4,4309.2,3.899]
[1757034091236,0.7593,4309.4,4309.2,0.004]
[1757034091763,0.02312688,4309.3,4309.2,0.004]
[1757034091946,0.9591,4309.3,4309.2,0.004]
[1757034092146,1.3604,4309.3,4309.2,0.004]
[1757034092368,3.6809625,4309.3,4309.2,0.004]
[1757034092668,3.70408938,4309.3,4309.2,0.004]
[1757034092888,3.6809625,4309.3,4309.2,0.004]
[1757034095143,3.1958625,4309.3,4309.2,0.004]
[1757034095553,3.6809625,4309.3,4309.2,0.004]
[1757034095851,0.4013,4309.3,4309.2,0.004]
[1757034096441,3.0,4309.6,4309.2,0.2893]
[1757034096656,0.116,4309.5,4309.2,1.203]
[1757034097270,0.116,4309.5,4309.2,0.2893]
[1757034097589,0.116,4309.5,4309.2,0.004]
[1757034097590,2.6058625,4309.3,4309.2,0.004]
[1757034097754,0.2853,4309.3,4309.2,0.004]
[1757034099884,2.6058625,4309.3,4309.2,0.004]
[1757034100253,3.5246625,4309.3,4309.2,0.004]
[1757034100865,3.54778938,4309.3,4309.2,0.004]
[1757034101269,0.30842688,4309.3,4309.2,0.004]
[1757034101569,3.05968938,4309.3,4309.2,0.004]
[1757034102084,0.2853,4309.3,4309.2,0.004]
[1757034102281,3.903,4309.4,4309.2,0.3009]
[1757034102448,0.2922,4309.3,4309.2,0.004]
[1757034103179,3.903,4309.4,4309.2,0.3009]
[1757034104559,6.22351245,4309.4,4309.2,0.004]
[1757034104887,2.6127625,4309.3,4309.2,0.004]
[1757034105188,3.0434625,4309.3,4309.2,0.004]
[1757034105391,0.7229,4309.3,4309.2,0.004]
[1757034105584,0.2922,4309.3,4309.2,0.004]
[1757034106089,3.903,4309.4,4309.2,0.3009]
[1757034106453,0.116,4309.5,4309.2,0.3009]
[1757034106658,3.901,4309.8,4309.3,3.28333662]
[1757034106855,3.901,4309.8,4309.7,0.2969]
[1757034107088,3.901,4310.1,4309.7,0.2969]
[1757034107500,0.116,4309.8,4309.7,0.2969]
[1757034108371,0.116,4309.8,4309.4,0.4697]
[1757034108573,0.4082,4309.8,4309.2,0.4971]
[1757034108788,0.116,4309.8,4309.2,0.4971]
[1757034109002,0.116,4309.8,4309.7,0.2969]
[1757034109962,0.116,4309.8,4309.3,0.4697]
[1757034110167,0.4082,4309.8,4309.3,0.9628]
[1757034110465,0.4082,4309.8,4309.2,0.004]
[1757034110466,2.32035444,4309.7,4309.2,0.004]
[1757034110675,0.86202688,4309.8,4309.3,0.21737832]
[1757034110876,0.56982688,4309.8,4309.4,0.21737832]
[1757034111092,2.89012218,4309.8,4309.5,0.21737832]
[1757034111290,2.89012218,4309.8,4309.2,0.004]
[1757034111291,0.2922,4309.6,4309.2,0.004]
[1757034111492,0.2922,4309.6,4309.3,0.21737683]
[1757034111792,0.13912688,4309.8,4309.4,0.21737683]
[1757034111986,0.116,4309.8,4309.5,0.21737683]
[1757034112195,0.116,4309.8,4309.6,0.21737683]
[1757034112373,0.116,4309.8,4309.2,0.004]
[1757034112374,0.116,4309.8,4309.7,0.21737683]
[1757034112573,0.4082,4309.8,4309.7,0.21737683]
[1757034112968,0.116,4309.8,4309.7,0.21737683]
[1757034113170,0.4082,4309.8,4309.7,0.21737683]
[1757034113600,3.15919328,4309.8,4309.7,0.21737683]
[1757034113787,6.15919328,4309.8,4309.7,0.21737683]
[1757034116070,10.05619328,4309.8,4309.7,0.21737683]
[1757034117682,9.62549328,4309.8,4309.7,0.21737683]
[1757034118405,10.05619328,4309.8,4309.7,0.21737683]
[1757034118701,2.32034712,4309.7,4309.6,0.004]
[1757034118901,6.623574,4309.7,4309.6,0.004]
[1757034119104,7.32334712,4309.7,4309.6,0.004]
[1757034119498,11.81248709,4309.7,4309.6,0.004]
[1757034121198,11.32438709,4309.7,4309.6,0.004]
[1757034121709,6.83524712,4309.7,4309.6,0.004]
[1757034123108,6.40454712,4309.7,4309.6,0.004]
[1757034124615,9.03334712,4309.7,4309.6,0.004]
[1757034127329,9.03334712,4309.7,4309.2,0.004]
[1757034127330,3.1125625,4309.3,4309.2,0.004]
[1757034127530,18.0778779,4309.2,4309.1,0.004]
[1757034127739,19.2888779,4309.2,4309.1,0.004]
[1757034132135,0.792,4309.0,4308.6,0.004]
[1757034132308,16.96826155,4309.2,4308.3,0.004]
[1757034132309,6.11304725,4308.4,4308.3,0.004]
[1757034132506,22.3900088,4308.4,4308.3,0.004]
[1757034132820,23.3120088,4308.4,4308.3,0.004]
[1757034133398,3.11331665,4307.9,4307.6,0.004]
[1757034133594,11.85744353,4307.9,4307.6,0.004]
[1757034133829,12.57541665,4307.9,4307.6,0.004]
[1757034134500,12.13601665,4307.9,4307.6,0.004]
[1757034135125,9.513,4307.9,4307.8,0.3231]
[1757034135528,4.827,4307.9,4307.8,1.2595]
[1757034135733,3.894,4308.2,4307.8,1.38585]
[1757034136028,0.116,4308.1,4307.9,3.25771085]
[1757034136240,0.116,4308.1,4308.0,1.2345]
[1757034139257,0.116,4308.1,4308.0,0.2981]
[1757034139457,0.116,4308.1,4308.0,0.7851]
[1757034139458,0.13912688,4308.1,4308.0,0.7851]
[1757034139752,0.116,4308.1,4308.0,1.2345]
[1757034140133,0.116,4308.1,4308.0,0.2981]
[1757034140348,2.76203576,4308.1,4307.8,0.025]
[1757034140560,3.895,4308.0,4307.8,0.025]
[1757034140762,6.43814353,4307.9,4307.8,0.025]